bitfinex-derivatives/quotes_BTCF0:USTF0_20251009
["timestamp","ask_amount","ask_price","bid_price","bid_amount"]
[1760018351678,0.4424333,122450.0,122440.0,0.55362152]
[1760018351879,0.4424333,122450.0,122440.0,0.93576985]
[1760018352081,0.4713033,122450.0,122440.0,1.29091152]
[1760018352289,0.5186933,122450.0,122440.0,0.15321985]
[1760018352587,0.5186933,122450.0,122440.0,0.81057]
[1760018352783,0.07626,122430.0,122420.0,0.21808269]
[1760018352983,0.79786,122430.0,122420.0,1.05101033]
[1760018353389,0.79786,122430.0,122420.0,0.97796269]
[1760018353586,0.79786,122430.0,122420.0,0.87569671]
[1760018353890,0.79786,122430.0,122420.0,0.81057]
[1760018354687,0.8795066,122430.0,122420.0,0.81057]
[1760018356190,0.8032466,122430.0,122420.0,0.49499172]
[1760018356385,0.8032466,122430.0,122420.0,0.41333842]
[1760018356685,0.8032466,122430.0,122420.0,1.61541248]
[1760018356991,0.8321166,122430.0,122420.0,1.27715406]
[1760018357190,0.8321166,122430.0,122420.0,1.61541248]
[1760018357390,0.8795066,122430.0,122420.0,0.97942004]
[1760018357690,0.8795066,122430.0,122420.0,0.87715406]
[1760018358589,0.8795066,122430.0,122420.0,0.81061]
[1760018358789,0.87958216,122430.0,122420.0,0.81061]
[1760018359690,0.87958216,122430.0,122420.0,0.05069]
[1760018359886,0.87958216,122430.0,122420.0,0.81061]
[1760018360281,0.87958216,122430.0,122420.0,0.81057]
[1760018360888,0.87958216,122430.0,122420.0,0.05069]
[1760018361094,0.87958216,122430.0,122420.0,0.81057]
[1760018362697,0.80332216,122430.0,122420.0,1.25483172]
[1760018363392,0.80332216,122430.0,122420.0,1.3570977]
[1760018363599,0.83219216,122430.0,122420.0,1.2754444]
[1760018363793,0.80332216,122430.0,122420.0,1.2754444]
[1760018363986,0.80332216,122430.0,122420.0,1.3570977]
[1760018364389,0.72167556,122430.0,122420.0,1.65483172]
[1760018364594,0.72167556,122430.0,122420.0,0.89499172]
[1760018364896,0.72167556,122430.0,122420.0,1.80121602]
[1760018365098,7.556e-05,122430.0,122420.0,1.80121602]
[1760018365292,0.08172216,122430.0,122420.0,1.4629576]
[1760018365594,0.08172216,122430.0,122420.0,1.80121602]
[1760018365794,7.556e-05,122430.0,122420.0,1.90376629]
[1760018365995,7.556e-05,122430.0,122420.0,1.90372629]
[1760018366195,7.556e-05,122430.0,122420.0,1.80117602]
[1760018367295,7.556e-05,122430.0,122420.0,1.4629176]
[1760018367497,7.556e-05,122430.0,122420.0,1.3812643]
[1760018367696,7.556e-05,122430.0,122420.0,1.71952272]
[1760018368193,7.556e-05,122430.0,122420.0,1.57313842]
[1760018368393,7.556e-05,122430.0,122420.0,1.65479172]
[1760018368999,7.556e-05,122430.0,122420.0,1.65475172]
[1760018369609,0.3608,122450.0,122440.0,0.0816399]
[1760018369903,0.3608,122460.0,122450.0,0.1421833]
[1760018370088,0.4424255,122470.0,122460.0,0.1567066]
[1760018370295,0.5186855,122470.0,122460.0,1.25468502]
[1760018370594,0.5186855,122470.0,122460.0,0.51600947]
[1760018370796,0.5186855,122470.0,122460.0,0.91308105]
[1760018371091,0.5186855,122470.0,122460.0,0.8920366]
[1760018371487,0.3608,122470.0,122460.0,1.25468502]
[1760018371892,0.43706,122470.0,122460.0,0.38894842]
[1760018372200,0.43706,122470.0,122460.0,0.05069]
[1760018372401,0.43706,122470.0,122460.0,0.81033]
[1760018372702,0.43806,122470.0,122460.0,0.81033]
[1760018373300,0.43706,122470.0,122460.0,0.81033]
[1760018374192,0.43706,122470.0,122460.0,0.11677485]
[1760018374395,0.1578933,122450.0,122440.0,0.26278855]
[1760018374597,0.5186933,122450.0,122440.0,0.99459855]
[1760018374998,0.5186933,122450.0,122440.0,0.8919275]
[1760018375296,0.5186933,122450.0,122440.0,0.05069]
[1760018375506,0.5186933,122450.0,122440.0,1.23014832]
[1760018376399,0.5186933,122450.0,122440.0,0.81021]
[1760018376596,0.5186933,122450.0,122440.0,0.15339994]
[1760018376798,1.2794933,122450.0,122440.0,0.10270994]
[1760018377006,1.2794933,122450.0,122440.0,0.86218994]
[1760018377193,1.2794933,122450.0,122440.0,0.91287994]
[1760018377803,1.2794933,122450.0,122440.0,0.86218994]
[1760018378305,1.2794933,122450.0,122440.0,0.10270994]
[1760018378504,1.2794933,122450.0,122440.0,0.86218994]
[1760018378808,1.2794933,122450.0,122440.0,0.10270994]
[1760018379000,1.61775172,122450.0,122440.0,0.10270994]
[1760018379302,1.61775172,122450.0,122420.0,0.1463843]
[1760018379498,1.13636842,122430.0,122420.0,0.1463843]
[1760018379804,1.13636842,122430.0,122420.0,0.4867843]
[1760018380305,1.21801502,122430.0,122400.0,0.06679664]
[1760018380506,0.5189699,122410.0,122400.0,0.80569]
[1760018380705,0.5189699,122410.0,122400.0,0.04625]
[1760018380898,0.5189699,122410.0,122400.0,0.80569]
[1760018381099,0.5189699,122410.0,122400.0,0.1279166]
[1760018381497,0.3608,122410.0,122400.0,0.1506766]
[1760018381698,0.3608,122410.0,122400.0,1.24837502]
[1760018382100,0.3608,122420.0,122410.0,0.10429]
[1760018382299,0.3608,122420.0,122410.0,1.24823842]
[1760018382495,0.3608,122420.0,122410.0,1.79462272]
[1760018382700,0.3608,122420.0,122410.0,1.39462272]
[1760018383202,0.3608,122420.0,122410.0,0.63518272]
[1760018383401,0.40966,122420.0,122410.0,0.9747043]
[1760018383598,0.43731,122420.0,122410.0,0.1926343]
[1760018383801,0.83731,122420.0,122410.0,0.9520743]
[1760018384001,0.43731,122420.0,122410.0,0.9520743]
[1760018384200,0.43731,122420.0,122410.0,0.80569]
[1760018384404,0.43731,122420.0,122410.0,0.80565]
[1760018385206,0.5189633,122420.0,122410.0,0.80565]
[1760018385405,0.5189633,122420.0,122410.0,0.04625]
[1760018385602,0.5189633,122420.0,122410.0,0.80569]
[1760018387208,0.5189633,122420.0,122410.0,0.04625]
[1760018387403,0.5189633,122420.0,122410.0,0.80561]
[1760018387909,0.1595699,122410.0,122400.0,0.11144096]
[1760018388111,0.5203699,122410.0,122400.0,0.80507]
[1760018388404,0.5203699,122410.0,122400.0,0.8866966]
[1760018388610,0.5203699,122410.0,122400.0,0.80503]
[1760018389809,0.5203699,122410.0,122400.0,0.1273366]
[1760018390010,0.5203699,122410.0,122400.0,0.8866966]
[1760018390210,0.5203699,122410.0,122400.0,0.04567]
[1760018390404,0.5203699,122410.0,122400.0,0.80503]
[1760018390810,0.5203699,122410.0,122400.0,0.8866966]
[1760018391206,0.5203699,122410.0,122400.0,0.9093266]
[1760018391406,0.5203699,122410.0,122400.0,0.95239575]
[1760018391912,0.3608,122410.0,122400.0,0.97502575]
[1760018392308,0.3608,122410.0,122400.0,1.31324417]
[1760018392606,0.3608,122410.0,122400.0,0.97498575]
[1760018392912,0.3608,122410.0,122400.0,1.31324417]
[1760018393113,0.3608,122410.0,122400.0,0.55392417]
[1760018393407,0.3608,122410.0,122400.0,1.31324417]
[1760018393914,0.3608,122420.0,122410.0,0.1500899]
[1760018394103,0.3608,122420.0,122410.0,0.48834832]
[1760018394307,0.3608,122420.0,122410.0,1.24762832]
[1760018395113,0.3608,122420.0,122410.0,0.9093699]
[1760018395312,0.3608,122420.0,122410.0,1.24762832]
[1760018395715,0.3608,122420.0,122410.0,0.9093699]
[1760018395910,0.3608,122420.0,122410.0,1.24762832]
[1760018396217,0.3608,122430.0,122420.0,0.1551133]
[1760018396611,0.3608,122430.0,122420.0,0.49337172]
[1760018396816,0.3608,122440.0,122430.0,0.1373566]
[1760018397014,0.3608,122440.0,122430.0,1.23485502]
[1760018397216,0.3608,122440.0,122430.0,1.63485502]
[1760018397813,0.3608,122450.0,122440.0,0.1499399]
[1760018398019,0.3608,122460.0,122450.0,0.1500633]
[1760018398317,0.5203366,122460.0,122450.0,0.80487]
[1760018398719,0.3608,122460.0,122450.0,0.9092633]
[1760018398920,0.3608,122460.0,122450.0,1.24752172]
[1760018399720,0.3608,122460.0,122450.0,0.9092633]
[1760018399923,0.3608,122460.0,122450.0,0.06843]
[1760018400114,0.3608,122460.0,122450.0,0.9091833]
[1760018400311,0.4424266,122460.0,122450.0,0.04567]
[1760018400516,0.07791,122450.0,122440.0,0.04567]
[1760018400712,0.43871,122450.0,122440.0,0.04567]
[1760018400911,0.07791,122430.0,122420.0,0.04567]
[1760018401220,0.07791,122410.0,122400.0,0.04567]
[1760018401513,0.1595766,122400.0,122390.0,0.04575112]
[1760018401819,0.85863502,122400.0,122390.0,8.112e-05]
[1760018402123,0.9203766,122400.0,122390.0,8.112e-05]
[1760018402317,1.25863502,122400.0,122390.0,8.112e-05]
[1760018402710,1.25863502,122400.0,122390.0,1e-08]
[1760018403113,0.02848,122370.0,122340.0,0.15422632]
[1760018403314,0.52041,122350.0,122340.0,0.19989632]
[1760018403521,0.52041,122350.0,122340.0,0.91933632]
[1760018403919,0.52041,122350.0,122340.0,0.77295202]
[1760018404222,0.36088112,122350.0,122340.0,0.89425872]
[1760018404416,0.36088112,122350.0,122340.0,0.90429872]
[1760018404820,0.36088112,122350.0,122340.0,1.24255714]
[1760018405026,0.36088112,122350.0,122340.0,0.13521872]
[1760018405226,0.41031112,122350.0,122340.0,0.81255202]
[1760018405423,0.43879112,122350.0,122340.0,0.05351202]
[1760018405725,0.43879112,122350.0,122340.0,0.62379202]
[1760018405921,0.43879112,122350.0,122340.0,0.05351202]
[1760018406421,0.43879112,122350.0,122340.0,0.76692202]
[1760018406623,0.83879112,122350.0,122340.0,0.76692202]
[1760018407016,0.83879112,122350.0,122340.0,0.76696202]
[1760018407224,0.83879112,122350.0,122340.0,0.00784202]
[1760018407435,1.17704954,122350.0,122340.0,0.00784202]
[1760018407820,0.07791,122330.0,122320.0,0.32452]
[1760018408025,0.79951,122330.0,122320.0,0.04567]
[1760018408423,0.02856112,122350.0,122340.0,0.0817067]
[1760018408618,0.02856112,122350.0,122340.0,2.8431467]
[1760018408825,0.02856112,122350.0,122340.0,2.03984]
[1760018409024,0.07791,122340.0,122330.0,0.3608]
[1760018409229,0.07791,122340.0,122330.0,1.2026733]
[1760018409426,0.07791,122340.0,122330.0,0.3608]
[1760018409725,0.07791,122340.0,122310.0,0.5071843]
[1760018409726,0.07673,122320.0,122310.0,0.5071843]
[1760018409922,0.07673,122320.0,122310.0,1.2677043]
[1760018410326,0.07673,122310.0,122300.0,0.42695169]
[1760018410533,0.07673,122310.0,122290.0,0.08008714]
[1760018410534,0.07673,122300.0,122290.0,0.08008714]
[1760018411331,0.07673,122270.0,122260.0,0.23836083]
[1760018411548,0.02891,122270.0,122260.0,1.78025935]
[1760018411733,0.02891,122270.0,122260.0,1.78045935]
[1760018412032,0.02891,122270.0,122260.0,0.99967476]
[1760018412223,0.02891,122270.0,122260.0,0.66141634]
[1760018412432,0.02898436,122270.0,122260.0,1.76091476]
[1760018412635,0.02898436,122270.0,122260.0,1.61453046]
[1760018412826,0.02898436,122270.0,122260.0,1.25329046]
[1760018412827,7.436e-05,122270.0,122260.0,1.25329046]
[1760018413032,7.436e-05,122270.0,122260.0,2.01445046]
[1760018413234,0.07680436,122270.0,122260.0,0.43327194]
[1760018413433,0.02898436,122270.0,122260.0,1.25329046]
[1760018413825,7.436e-05,122270.0,122260.0,2.01465046]
[1760018414132,7.436e-05,122270.0,122260.0,4.05501046]
[1760018414328,0.02891,122280.0,122270.0,0.0817534]
[1760018414637,0.02891,122280.0,122270.0,0.78081182]
[1760018414837,0.02891,122300.0,122290.0,0.0817401]
[1760018415025,0.02891,122300.0,122290.0,1.14159852]
[1760018415230,0.0290039,122300.0,122290.0,1.14159852]
[1760018415530,0.0768239,122300.0,122280.0,0.3608]
[1760018415834,0.02891,122280.0,122270.0,0.78081182]
[1760018416037,0.02891,122280.0,122270.0,0.42001182]
[1760018416233,0.02891,122270.0,122260.0,2.55562934]
[1760018416432,0.02891,122270.0,122260.0,0.81248936]
[1760018416637,0.02891,122270.0,122260.0,1.65556946]
[1760018416833,0.02891,122270.0,122260.0,0.51503204]
[1760018417041,0.02891,122270.0,122260.0,0.89424946]
[1760018417433,0.02891,122270.0,122260.0,1.65548946]
[1760018418232,0.02891,122270.0,122260.0,0.81248936]
[1760018418436,0.02891,122270.0,122260.0,1.19435194]
[1760018418631,0.02891,122270.0,122260.0,1.65532946]
[1760018419139,0.02900302,122270.0,122260.0,0.83367194]
[1760018419642,0.42900302,122270.0,122260.0,0.83355194]
[1760018420136,0.47682302,122270.0,122260.0,0.83339194]
[1760018420338,0.47682302,122270.0,122260.0,1.21260936]
[1760018420736,0.55857642,122270.0,122260.0,0.00784202]
[1760018420942,0.91937642,122270.0,122260.0,0.76884202]
[1760018421138,1.29859384,122270.0,122260.0,0.76884202]
[1760018421332,0.02891,122240.0,122230.0,0.3608]
[1760018421532,0.1585035,122240.0,122230.0,0.3608]
[1760018421733,0.1585974,122240.0,122230.0,1.12176]
[1760018421937,0.1585102,122230.0,122220.0,9.782e-05]
[1760018422139,0.1585102,122230.0,122220.0,0.76105782]
[1760018422140,0.07673,122230.0,122220.0,0.76105782]
[1760018422441,0.07673,122230.0,122220.0,0.50702835]
[1760018422750,0.02891,122230.0,122220.0,1.64720577]
[1760018423244,0.07673,122230.0,122220.0,0.42524145]
[1760018423448,1.29852762,122230.0,122220.0,9.782e-05]
[1760018423644,0.02891,122190.0,122180.0,0.36864202]
[1760018423941,0.02891,122190.0,122180.0,0.83679274]
[1760018424737,0.02898644,122190.0,122180.0,0.83679274]
[1760018425038,0.02898644,122190.0,122180.0,1.29634084]
[1760018425232,7.644e-05,122190.0,122180.0,2.05906084]
[1760018425435,0.02898644,122190.0,122180.0,2.05906084]
[1760018425636,0.02898644,122190.0,122180.0,1.65906084]
[1760018425847,0.02898644,122190.0,122180.0,1.27984342]
[1760018426038,0.02798644,122190.0,122180.0,1.65906084]
[1760018426238,0.02798644,122190.0,122180.0,0.89634084]
[1760018426533,0.02798644,122190.0,122180.0,1.65922084]
[1760018426730,0.02798644,122190.0,122180.0,0.43531012]
[1760018426945,0.0280713,122190.0,122180.0,1.27992382]
[1760018427136,0.0280713,122190.0,122180.0,1.13144202]
[1760018427340,0.0280713,122190.0,122180.0,0.00784202]
[1760018427632,1.24989572,122190.0,122180.0,0.00784202]
[1760018428141,0.7888713,122190.0,122180.0,0.00784202]
[1760018428335,0.3888713,122190.0,122180.0,0.00784202]
[1760018428534,0.84989572,122190.0,122180.0,0.00784202]
[1760018428743,0.8706783,122190.0,122180.0,0.00784202]
[1760018429247,1.24989572,122190.0,122180.0,0.00784202]
[1760018429539,0.02891,122160.0,122150.0,0.3608]
[1760018429744,0.02891,122160.0,122150.0,1.2059538]
[1760018429944,0.0289774,122160.0,122150.0,1.2059538]
[1760018430139,0.0289774,122160.0,122150.0,1.2068338]
[1760018430342,0.0289774,122160.0,122150.0,1.6067538]
[1760018430541,0.0289774,122160.0,122150.0,1.98597122]
[1760018430847,0.0289774,122160.0,122150.0,2.34677122]
[1760018431647,0.0289774,122160.0,122150.0,2.41284703]
[1760018431951,6.74e-05,122160.0,122150.0,2.02794445]
[1760018432147,0.02798644,122190.0,122180.0,0.0818137]
[1760018432344,0.02798644,122190.0,122180.0,1.58619112]
[1760018432643,0.02891,122180.0,122170.0,0.4426169]
[1760018432844,0.02891,122180.0,122170.0,1.18263432]
[1760018433149,0.02891,122180.0,122170.0,1.18263412]
[1760018433444,0.11077158,122180.0,122170.0,0.7216]
[1760018433752,0.02891,122170.0,122160.0,0.82184352]
[1760018433945,0.02891,122170.0,122150.0,2.55130381]
[1760018434149,0.02891,122160.0,122150.0,0.88792123]
[1760018434344,0.02891,122160.0,122150.0,0.3608]
[1760018434345,0.1107371,122160.0,122150.0,0.3608]
[1760018434648,0.02891,122160.0,122150.0,1.1252]
[1760018434850,0.02891,122140.0,122130.0,0.50678771]
[1760018435046,0.02895788,122140.0,122130.0,1.65044513]
[1760018435345,0.02895788,122140.0,122130.0,0.88600513]
[1760018435551,4.788e-05,122140.0,122130.0,2.05040513]
[1760018435849,0.02891,122160.0,122150.0,0.0818338]
[1760018436043,0.02891,122170.0,122160.0,0.0818271]
[1760018436242,0.02891,122180.0,122170.0,0.0818204]
[1760018436448,0.02891,122190.0,122180.0,0.0818137]
[1760018436649,0.02891,122190.0,122180.0,0.82183112]
[1760018437041,0.02891,122190.0,122180.0,1.58655112]
[1760018437256,0.02891,122190.0,122180.0,0.82183112]
[1760018437446,0.02891,122190.0,122180.0,1.58651112]
[1760018437852,0.02891,122200.0,122190.0,0.081807]
[1760018438050,0.02891,122200.0,122190.0,0.82182442]
[1760018438345,0.02891,122210.0,122200.0,0.0818003]
[1760018438551,0.02891,122210.0,122200.0,1.58637772]
[1760018438757,0.02891,122210.0,122200.0,0.3608]
[1760018439055,0.02891,122210.0,122190.0,0.42579412]
[1760018439056,0.02891,122200.0,122190.0,0.081807]
[1760018439347,0.02891,122180.0,122170.0,2.40368]
[1760018439550,0.02891,122180.0,122170.0,0.06421944]
[1760018439847,0.02865,122170.0,122160.0,0.82184412]
[1760018440249,0.02865,122170.0,122160.0,0.3608]
[1760018440449,0.1104704,122170.0,122150.0,0.74001742]
[1760018440653,0.02865,122160.0,122150.0,0.3608]
[1760018440860,0.02865,122160.0,122150.0,1.12604]
[1760018441155,0.02865,122160.0,122150.0,1.58761122]
[1760018441647,0.02865,122160.0,122150.0,0.8475938]
[1760018441843,0.38945,122160.0,122150.0,0.8475938]
[1760018442050,0.02865,122160.0,122150.0,0.8475938]
[1760018442450,0.02865,122150.0,122140.0,0.3608]
[1760018442650,0.02865,122140.0,122130.0,2.48575318]
[1760018442849,0.02865,122140.0,122130.0,3.6305706]
[1760018443253,0.1104905,122140.0,122130.0,0.36090598]
[1760018443460,0.1104905,122140.0,122130.0,0.00010598]
[1760018443953,1.25050792,122140.0,122130.0,0.76578598]
[1760018444155,0.8712905,122140.0,122130.0,0.00010598]
[1760018444459,1.25050792,122140.0,122130.0,0.00010598]
[1760018444651,0.8712905,122140.0,122130.0,0.00010598]
[1760018445046,1.25050792,122140.0,122130.0,0.00010598]
[1760018445263,0.8712905,122140.0,122130.0,0.00010598]
[1760018445854,1.25050792,122140.0,122130.0,0.00010598]
[1760018446160,0.8712905,122140.0,122130.0,0.00010598]
[1760018446365,1.25050792,122140.0,122130.0,0.00010598]
[1760018446572,0.38945,122140.0,122130.0,0.00010598]
[1760018446750,0.85050792,122140.0,122130.0,0.00010598]
[1760018447656,0.02865,122140.0,122130.0,0.08195318]
[1760018447855,0.02865,122140.0,122130.0,0.92800361]
[1760018448062,0.02865,122140.0,122130.0,2.05452361]
[1760018448251,0.02865,122150.0,122140.0,0.0818405]
[1760018448455,0.02865,122150.0,122140.0,0.82185792]
[1760018449063,0.02865,122150.0,122140.0,1.22185792]
[1760018449262,0.02865,122160.0,122150.0,0.0818338]
[1760018449455,0.02865,122170.0,122160.0,0.0818271]
[1760018449655,0.02865,122170.0,122160.0,0.82184452]
[1760018450253,0.02807,122180.0,122170.0,0.0818204]
[1760018450459,0.02807,122180.0,122170.0,0.82183782]
[1760018450660,0.02807,122170.0,122160.0,0.3608]
[1760018450855,0.02807,122160.0,122150.0,0.4426338]
[1760018451055,0.02807,122160.0,122150.0,1.58809122]
[1760018451263,0.02807,122160.0,122150.0,0.76624]
[1760018451459,0.02807,122160.0,122150.0,0.8480738]
[1760018451662,0.02807,122160.0,122150.0,0.76612]
[1760018451862,0.38887,122160.0,122150.0,0.76612]
[1760018452461,0.02807,122160.0,122150.0,1.58797122]
[1760018452957,0.02807,122160.0,122150.0,1.98797122]
[1760018453162,0.02807,122160.0,122150.0,1.98777122]
[1760018453362,0.02807,122170.0,122160.0,0.0818271]
[1760018453660,0.02807,122170.0,122160.0,1.58780452]
[1760018453858,0.02807,122180.0,122170.0,0.0818204]
[1760018454064,0.02807,122180.0,122170.0,0.4426204]
[1760018454262,0.02807,122190.0,122180.0,0.0818137]
[1760018454565,0.02807,122200.0,122190.0,0.081807]
[1760018454759,0.02807,122200.0,122190.0,0.82182442]
[1760018455065,0.02807,122210.0,122200.0,0.0818003]
[1760018455261,0.02807,122210.0,122200.0,1.58789772]
[1760018455561,0.02807,122220.0,122210.0,0.0817936]
[1760018455773,0.02807,122230.0,122220.0,0.0817869]
[1760018455961,0.02807,122240.0,122230.0,0.0817802]
[1760018456260,0.02807,122240.0,122230.0,0.4425802]
[1760018456459,0.02807,122240.0,122230.0,0.3608]
[1760018456460,0.40728742,122240.0,122230.0,0.3608]
[1760018456656,0.40728742,122240.0,122220.0,0.4425858]
[1760018456657,0.02807,122220.0,122200.0,0.42737879]
[1760018456860,0.02807,122220.0,122210.0,1.2087936]
[1760018457058,0.02807,122220.0,122210.0,0.4425936]
[1760018457360,0.02807,122220.0,122210.0,1.58805102]
[1760018457556,0.02807,122220.0,122210.0,1.12704]
[1760018457757,0.02807,122220.0,122210.0,0.8479136]
[1760018458465,0.02807,122220.0,122210.0,1.58793102]
[1760018458661,0.02807,122220.0,122210.0,1.2087136]
[1760018458857,0.02888,122220.0,122210.0,1.2087136]
[1760018459358,0.02888,122220.0,122210.0,0.8479136]
[1760018459564,0.02888,122220.0,122210.0,1.2087136]
[1760018460158,0.02888,122220.0,122210.0,1.58793102]
[1760018460373,0.00081,122220.0,122210.0,1.98793102]
[1760018460665,0.02888,122220.0,122210.0,0.3608]
[1760018460864,0.48988432,122220.0,122210.0,0.3608]
[1760018461068,0.40809742,122220.0,122210.0,1.2080736]
[1760018461266,0.02888,122220.0,122210.0,0.4435936]
[1760018461462,0.00081,122220.0,122210.0,1.22281102]
[1760018461668,0.00081,122220.0,122210.0,1.98829102]
[1760018461972,0.02807,122260.0,122240.0,0.0817735]
[1760018462173,0.022214,122260.0,122250.0,0.3608]
[1760018462468,0.07184586,122330.0,122250.0,0.3608]
[1760018462469,0.08579598,122330.0,122290.0,0.0817401]
[1760018462773,0.08579598,122330.0,122260.0,0.408801]
[1760018462774,0.02807,122320.0,122300.0,0.15256]
[1760018462975,0.02807,122310.0,122290.0,0.46095632]
[1760018463172,0.02807,122310.0,122300.0,0.76664]
[1760018463369,0.02807,122310.0,122300.0,0.76668]
[1760018463675,0.02807,122310.0,122280.0,2.1246662]
[1760018463865,0.02807,122310.0,122290.0,0.76656]
[1760018464064,0.02807,122310.0,122280.0,2.50388382]
[1760018464271,0.38887,122310.0,122280.0,2.4854664]
[1760018464465,0.84981462,122310.0,122280.0,0.3608]
[1760018464673,0.02807,122280.0,122270.0,0.3608]
[1760018464863,0.02807,122280.0,122270.0,1.12728]
[1760018465064,0.02807,122280.0,122260.0,0.3608]
[1760018465562,0.80728742,122280.0,122260.0,0.3608]
[1760018465764,0.02807,122260.0,122250.0,0.06560968]
[1760018466071,0.40728742,122260.0,122250.0,0.76668]
[1760018466264,0.02807,122240.0,122230.0,7.898e-05]
[1760018466568,0.02807,122240.0,122230.0,0.76683898]
[1760018466869,0.02807,122240.0,122230.0,0.8218766]
[1760018467269,0.02807,122240.0,122230.0,1.20961918]
[1760018467462,0.02807,122240.0,122230.0,0.44265918]
[1760018467866,0.02807,122240.0,122230.0,1.5886766]
[1760018468065,0.02807,122260.0,122250.0,0.0817668]
[1760018468271,0.02807,122260.0,122250.0,0.8485268]
[1760018468470,0.02807,122260.0,122250.0,0.8486068]
[1760018468669,0.02807,122260.0,122250.0,1.22782422]
[1760018468870,0.02807,122260.0,122250.0,0.8486068]
[1760018469069,0.02807,122260.0,122250.0,0.8490468]
[1760018469268,0.02807,122260.0,122250.0,0.46098422]
[1760018469472,0.02807,122260.0,122250.0,0.82178422]
[1760018469678,0.02807,122260.0,122250.0,1.58898422]
[1760018469980,0.02807,122260.0,122230.0,0.8218766]
[1760018469981,0.02963,122240.0,122230.0,0.8218766]
[1760018470184,0.02963,122240.0,122230.0,1.5891166]
[1760018470367,0.02963,122240.0,122230.0,1.2218766]
[1760018470674,0.02807,122260.0,122250.0,0.0817668]
[1760018470873,0.02807,122260.0,122250.0,0.46098422]
[1760018471065,0.02807,122260.0,122230.0,0.36087898]
[1760018471066,0.38887,122260.0,122230.0,0.36087898]
[1760018471273,0.02963,122240.0,122230.0,0.44265788]
[1760018471576,0.02963,122240.0,122230.0,1.5898753]
[1760018472072,0.02963,122240.0,122230.0,0.8218753]
[1760018472376,0.02963,122240.0,122230.0,1.2218753]
[1760018472574,0.02963,122240.0,122230.0,1.9900353]
[1760018472874,0.1114035,122240.0,122230.0,7.898e-05]
[1760018473369,0.02963,122240.0,122230.0,1.1474564]
[1760018473569,0.02963,122240.0,122230.0,1.5900766]
[1760018473777,0.02963,122240.0,122230.0,1.9900766]
[1760018473969,0.02807,122260.0,122240.0,0.0817687]
[1760018474165,0.02807,122260.0,122240.0,0.82179082]
[1760018474371,0.02807,122260.0,122250.0,0.8500468]
[1760018474769,0.02807,122260.0,122250.0,0.0817668]
[1760018475065,0.02807,122260.0,122250.0,0.8499268]
[1760018475473,0.02807,122260.0,122250.0,1.22914422]
[1760018475676,0.02807,122260.0,122250.0,0.82178422]
[1760018475872,0.02807,122260.0,122250.0,1.22898422]
[1760018476075,0.02807,122260.0,122250.0,0.46098422]
[1760018476277,0.02907,122260.0,122250.0,0.46098422]
[1760018476571,0.02907,122260.0,122240.0,0.44257]
[1760018476572,0.02963,122250.0,122240.0,0.44257]
[1760018476877,0.02963,122250.0,122240.0,0.08177]
[1760018477174,0.02963,122240.0,122230.0,7.898e-05]
[1760018477477,0.02963,122240.0,122230.0,0.84965918]
[1760018477881,0.5114035,122240.0,122230.0,7.898e-05]
[1760018478080,1.21164439,122240.0,122230.0,7.898e-05]
[1760018478475,1.21164439,122240.0,122210.0,0.001]
[1760018478476,0.1114169,122220.0,122210.0,0.001]
[1760018478673,0.39043,122220.0,122210.0,0.76884]
[1760018478976,0.39043,122220.0,122210.0,0.8506336]
[1760018479176,0.39043,122220.0,122210.0,0.8505936]
[1760018479476,0.47228811,122220.0,122210.0,0.7688]
[1760018479676,0.47228811,122220.0,122180.0,2.74252089]
[1760018479677,0.0817987,122210.0,122180.0,2.4848908]
[1760018479883,0.0817987,122210.0,122180.0,2.1240937]
[1760018479884,0.39043,122190.0,122180.0,2.1240937]
[1760018480076,0.39043,122190.0,122180.0,2.8917337]
[1760018480277,0.02969269,122190.0,122180.0,2.8916937]
[1760018480973,0.02969269,122190.0,122180.0,3.59193459]
[1760018481282,0.02969269,122190.0,122180.0,2.82433459]
[1760018481480,0.02969269,122190.0,122180.0,2.4848937]
[1760018481782,6.269e-05,122190.0,122180.0,3.22433459]
[1760018481971,6.269e-05,122190.0,122180.0,3.63101459]
[1760018482175,6.269e-05,122190.0,122180.0,3.99181459]
[1760018482477,6.269e-05,122190.0,122180.0,2.82433459]
[1760018482677,6.269e-05,122190.0,122180.0,3.59181459]
[1760018482978,6.269e-05,122190.0,122180.0,0.4426137]
[1760018483182,0.36086269,122190.0,122180.0,0.0818137]
[1760018483369,0.76086269,122190.0,122180.0,0.8492937]
[1760018483781,0.76086269,122190.0,122170.0,0.06449421]
[1760018483782,0.02963,122180.0,122170.0,0.06449421]
[1760018483985,0.39043,122180.0,122170.0,0.8492204]
[1760018484872,0.02963,122180.0,122170.0,0.42126129]
[1760018485082,0.02963,122180.0,122170.0,1.54950129]
[1760018485285,0.36086269,122190.0,122180.0,0.0818137]
[1760018485484,6.269e-05,122190.0,122180.0,0.42125459]
[1760018485788,6.269e-05,122190.0,122180.0,0.8492137]
[1760018485972,0.02969269,122190.0,122180.0,0.8492137]
[1760018486178,0.02969269,122190.0,122180.0,1.28333829]
[1760018486476,0.39049269,122190.0,122180.0,0.15513829]
[1760018486688,0.02969269,122190.0,122180.0,0.8490137]
[1760018486976,0.02969269,122190.0,122180.0,0.8490537]
[1760018487983,0.02969269,122190.0,122180.0,1.54929459]
[1760018488290,0.02969269,122190.0,122180.0,1.54901459]
[1760018488581,6.269e-05,122190.0,122180.0,1.94893459]
[1760018488884,0.02969269,122190.0,122180.0,2.02225918]
[1760018489977,0.02963,122210.0,122200.0,0.0818003]
[1760018490173,0.02963,122210.0,122200.0,1.54864119]
[1760018490381,0.02963,122210.0,122200.0,0.0818003]
[1760018490578,0.02963,122210.0,122200.0,0.8484003]
[1760018490778,0.02963,122210.0,122200.0,1.28248489]
[1760018490990,0.02963,122210.0,122200.0,1.62192578]
[1760018491804,0.02963,122210.0,122200.0,1.54860119]
[1760018491983,0.02963,122220.0,122210.0,0.0817936]
[1760018492175,0.39043,122220.0,122210.0,0.9066209]
[1760018492376,0.39043,122220.0,122210.0,0.8248273]
[1760018492588,0.02963,122220.0,122210.0,0.1404209]
[1760018493086,0.02963,122220.0,122210.0,1.2673409]
[1760018493280,0.02963,122220.0,122210.0,0.8479136]
[1760018493483,0.39043,122220.0,122210.0,0.8479136]
[1760018493682,0.39043,122220.0,122210.0,0.14045175]
[1760018493880,0.02963,122220.0,122210.0,0.90637175]
[1760018494284,0.39043,122220.0,122210.0,0.0817936]
[1760018494485,0.39043,122220.0,122210.0,0.8475136]
[1760018494680,0.02963,122220.0,122210.0,0.8474336]
[1760018494897,0.02963,122220.0,122210.0,0.97133297]
[1760018495085,0.02963,122220.0,122210.0,0.97125297]